[Event "XX Sants Open 2018"]
[Site "Cotxeres de Sants"]
[Date "2018.08.19"]
[Round "3"]
[White "Marza Vendrell, Conrado"]
[Black "Rodriguez Llorens, Jorge"]
[Result "1/2-1/2"]
[ECO "B22"]
[WhiteElo "1925"]
[BlackElo "1834"]
[Annotator "NA"]
[PlyCount "46"]
[EventDate "2018.08.17"]
[EventType "swiss"]
[EventCountry "ESP"]
[SourceTitle "playchess.com"]
[Source "ChessBase"]
[SourceQuality "1"]
[TimeControl "40/5400+30:1800+30"]

1. e4 c5 2. c3 d5 3. exd5 Qxd5 4. d4 Nf6 5. Nf3 Bg4 6. Be2 e6 7. O-O Be7 8. Re1 O-O 9. Nbd2 Nc6 10. Nf1 cxd4 11. Nxd4 Bxe2 12. Nxe2 Qxd1 13. Rxd1 Rfd8 14. Bg5 h6 15. Bf4 Ne4 16. Be3 Bc5 17. f3 Bxe3+ 18. Nxe3 Nc5 19. Rxd8+ Rxd8 20. Rd1 Rxd1+ 21. Nxd1 Nd3 22. b4 Kf8 23. Kf1 Ke7 1/2-1/2

[Event "XX Sants Open 2018"]
[Site "Cotxeres de Sants"]
[Date "2018.08.19"]
[Round "3"]
[White "Aparicio del Moral, Jesus Omar"]
[Black "Pallares Gurrea, Aitor Alexander"]
[Result "0-1"]
[ECO "A45"]
[WhiteElo "1919"]
[BlackElo "1826"]
[Annotator "NA"]
[PlyCount "102"]
[EventDate "2018.08.17"]
[EventType "swiss"]
[EventCountry "ESP"]
[SourceTitle "playchess.com"]
[Source "ChessBase"]
[SourceQuality "1"]
[TimeControl "40/5400+30:1800+30"]

1. d4 Nf6 2. Bf4 e6 3. e3 b6 4. Nf3 Bb7 5. Bd3 Ne4 6. Nbd2 f5 7. Bxe4 fxe4 8. Ng5 Qf6 9. Ngxe4 Qg6 10. Qf3 d5 11. Ng3 Qxc2 12. Qh5+ Qg6 13. Qxg6+ hxg6 14. Bxc7 Na6 15. Be5 Rc8 16. a3 Rc2 17. b4 Bc6 18. Ne2 Kd7 19. Nc1 Nc7 20. Bxc7 Kxc7 21. Ncb3 Bd6 22. Kd1 Rc3 23. g3 Kd7 24. Rc1 Rc4 25. h3 Bb7 26. Rh2 Rxc1+ 27. Kxc1 a5 28. bxa5 Bxa3+ 29. Kb1 bxa5 30. Nxa5 Ba6 31. f4 Bd3+ 32. Ka1 Bb4 33. Ndb3 Ra8 34. Kb2 Rb8 35. Ka2 Rb5 36. Rb2 Kc7 37. h4 Bxa5 38. Nc5 Rxb2+ 39. Kxb2 Bf5 40. Nb3 Be1 41. Kc1 Bxg3 42. Kd2 Bxh4 43. Nc5 Be7 44. Nb3 Kb6 45. Nc1 Bb4+ 46. Ke2 Kb5 47. Kf2 Kc4 48. Ne2 Be7 49. Ng1 Bh4+ 50. Ke2 Bg4+ 51. Kd2 Bf2 0-1

[Event "XX Sants Open 2018"]
[Site "Cotxeres de Sants"]
[Date "2018.08.19"]
[Round "3"]
[White "Romero Funieles, Rafael"]
[Black "Febrero Perez, Lluis"]
[Result "0-1"]
[ECO "C44"]
[WhiteElo "1642"]
[BlackElo "1515"]
[Annotator "NA"]
[PlyCount "62"]
[EventDate "2018.08.17"]
[EventType "swiss"]
[EventCountry "ESP"]
[SourceTitle "playchess.com"]
[Source "ChessBase"]
[SourceQuality "1"]
[TimeControl "40/5400+30:1800+30"]

1. e4 {[%emt 0:10:29]} e5 {[%emt 0:00:00]} 2. Nf3 {[%emt 0:00:39]} Nc6 {[%emt 0:00:00]} 3. d3 {[%emt 0:00:52]} Nf6 {[%emt 0:00:00]} 4. Be2 {[%emt 0:00:42]} Be7 {[%emt 0:00:00]} 5. Nc3 {[%emt 0:00:57]} O-O {[%emt 0:01:21]} 6. a3 {[%emt 0:00:14]} d6 {[%emt 0:01:32]} 7. h3 {[%emt 0:02:01]} b6 {[%emt 0:01:39]} 8. b4 {[%emt 0:03:30]} Bb7 {[%emt 0:00:11]} 9. O-O {[%emt 0:01:57]} d5 {[%emt 0:05:37]} 10. exd5 {[%emt 0:03:06]} Nxd5 {[%emt 0:00:06]} 11. Nxd5 {[%emt 0:00:55]} Qxd5 {[%emt 0:00:17]} 12. c4 {[%emt 0:01:21]} Qd6 {[%emt 0:01:28]} 13. Bg5 {[%emt 0:02:16]} Qg6 {[%emt 0:03:54]} 14. Bxe7 {[%emt 0:05:40]} Nxe7 {[%emt 0:00:06]} 15. g3 {[%emt 0:08:27]} Rad8 {[%emt 0:07:42]} 16. Nxe5 {[%emt 0:03:29]} Qe6 {[%emt 0:05:10]} 17. Bf3 {[%emt 0:08:18]} Bxf3 {[%emt 0:01:31]} 18. Nxf3 {[%emt 0:00:30]} Qxh3 {[%emt 0:00:08]} 19. d4 {[%emt 0:06:19]} Qg4 {[%emt 0:04:55]} 20. Rc1 {[%emt 0:04:09]} Ng6 {[%emt 0:03:36]} 21. d5 {[%emt 0:04:47]} Nf4 {[%emt 0:03:07]} 22. Nd4 {[%emt 0:02:31]} Qg5 {[%emt 0:05:20]} 23. Rc3 {[%emt 0:04:56]} Rd6 {[%emt 0:03:10]} 24. Nf3 {[%emt 0:03:30]} Nh3+ {[%emt 0:05:10]} 25. Kh2 {[%emt 0:02:28]} Qh6 {[%emt 0:02:13]} 26. Kg2 {[%emt 0:04:17]} Rg6 {[%emt 0:08:44]} 27. Rh1 {[%emt 0:03:01]} Nf4+ {[%emt 0:01:19]} 28. Kg1 {[%emt 0:01:37]} Nh5 {[%emt 0:04:57]} 29. Re3 {[%emt 0:06:20]} Rxg3+ {[%emt 0:00:33]} 30. Kf1 {[%emt 0:01:00]} Rg4 {[%emt 0:06:33]} 31. Re5 {[%emt 0:01:43]} Ng3+ {[%emt 0:00:26] Qe1} 0-1

[Event "XX Sants Open 2018"]
[Site "Cotxeres de Sants"]
[Date "2018.08.19"]
[Round "3"]
[White "Trenchs Lopez, Christian"]
[Black "Grasa Solanas, Oscar"]
[Result "0-1"]
[ECO "B01"]
[WhiteElo "1516"]
[BlackElo "1646"]
[Annotator "NA"]
[PlyCount "68"]
[EventDate "2018.08.17"]
[EventType "swiss"]
[EventCountry "ESP"]
[SourceTitle "playchess.com"]
[Source "ChessBase"]
[SourceQuality "1"]
[TimeControl "40/5400+30:1800+30"]

1. e4 d5 2. exd5 Nf6 3. Bc4 Nxd5 4. Nf3 e6 5. O-O Be7 6. Nc3 O-O 7. d4 Nxc3 8. bxc3 Nd7 9. Bf4 Nf6 10. Qe2 c5 11. Rfd1 Qa5 12. Bd2 Qc7 13. a4 b6 14. Bg5 cxd4 15. cxd4 Bb7 16. Bd3 Nd5 17. Bxe7 Qxe7 18. Qe4 g6 19. Qe1 Nf6 20. Ne5 Rad8 21. Bf1 Qc7 22. c4 Rd6 23. a5 Rfd8 24. axb6 axb6 25. Qc3 Kg7 26. g3 h5 27. Bg2 Bxg2 28. Kxg2 Qb7+ 29. Qf3 Qxf3+ 30. Nxf3 Ne4 31. Ra6 Nc3 32. Rd3 Ne2 33. c5 bxc5 34. Ra2 Nc1 0-1

[Event "XX Sants Open 2018"]
[Site "Cotxeres de Sants"]
[Date "2018.08.19"]
[Round "3"]
[White "Castano Fernandez, Alfredo"]
[Black "Martinez Torras, Pol"]
[Result "0-1"]
[ECO "B11"]
[WhiteElo "1515"]
[BlackElo "1642"]
[Annotator "NA"]
[PlyCount "66"]
[EventDate "2018.08.17"]
[EventType "swiss"]
[EventCountry "ESP"]
[SourceTitle "playchess.com"]
[Source "ChessBase"]
[SourceQuality "1"]
[TimeControl "40/5400+30:1800+30"]

1. e4 c6 2. Nc3 d5 3. Nf3 Bg4 4. h3 Bxf3 5. Qxf3 e6 6. d4 Nf6 7. e5 Nfd7 8. Ne2 c5 9. Be3 cxd4 10. Bxd4 Nc6 11. Qg3 Qc7 12. f4 Nb4 13. Kf2 Qxc2 14. a3 Nc6 15. Rc1 Qd2 16. Be3 Qxb2 17. Kg1 Qxa3 18. Qf2 d4 19. Bd2 Bc5 20. Rxc5 Qxc5 21. Ng3 d3 22. Bxd3 Qxf2+ 23. Kxf2 Nc5 24. Bb1 O-O-O 25. Be3 Nb3 26. Ne4 Rd7 27. Nd6+ Kb8 28. Rd1 Rhd8 29. Bc2 Nba5 30. Ke2 Nb4 31. Ba4 Nac6 32. Rd2 Nd5 33. g3 Nc3+ {Bd4} 0-1

[Event "XX Sants Open 2018"]
[Site "Cotxeres de Sants"]
[Date "2018.08.20"]
[Round "4"]
[White "Sochacki, Christophe"]
[Black "Vaibhav, Suri"]
[Result "1/2-1/2"]
[ECO "D10"]
[WhiteElo "2455"]
[BlackElo "2561"]
[Annotator "ChessBase"]
[PlyCount "24"]
[EventDate "2018.08.17"]
[EventType "swiss"]
[EventCountry "ESP"]
[SourceTitle "playchess.com"]
[Source "ChessBase"]
[SourceQuality "1"]
[TimeControl "40/5400+30:1800+30"]

1. d4 {[%emt 0:06:49]} d5 {[%emt 0:00:03]} 2. c4 {[%emt 0:00:14]} c6 {[%emt 0:00:09]} 3. Nc3 {[%emt 0:03:02]} Nf6 {[%emt 0:00:15]} 4. cxd5 {[%emt 0:00:24]} cxd5 {[%emt 0:00:07]} 5. Bf4 {[%emt 0:00:14]} a6 {[%emt 0:00:28]} 6. e3 {[%emt 0:00:37]} Nc6 {[%emt 0:00:09]} 7. Bd3 {[%emt 0:03:04]} Bg4 {[%emt 0:01:34]} 8. f3 {[%emt 0:01:39]} Bh5 {[%emt 0:01:06]} 9. Qb3 {[%emt 0:01:08]} Na5 {[%emt 0:00:54]} 10. Qa4+ {[%emt 0:01:15]} Nc6 {[%emt 0:02:36]} 11. Qb3 {[%emt 0:00:15]} Na5 {[%emt 0:00:46]} 12. Qa4+ {[%emt 0:00:56]} Nc6 {[%emt 0:07:35]} 1/2-1/2

[Event "XX Sants Open 2018"]
[Site "Cotxeres de Sants"]
[Date "2018.08.20"]
[Round "4"]
[White "Zankelevich, Lev"]
[Black "Peralta, Fernando"]
[Result "1/2-1/2"]
[ECO "E01"]
[WhiteElo "2420"]
[BlackElo "2556"]
[Annotator "ChessBase"]
[PlyCount "39"]
[EventDate "2018.08.17"]
[EventType "swiss"]
[EventCountry "ESP"]
[SourceTitle "playchess.com"]
[Source "ChessBase"]
[SourceQuality "1"]
[TimeControl "40/5400+30:1800+30"]

1. d4 {[%emt 0:00:00]} d5 {[%emt 0:00:00]} 2. c4 {[%emt 0:00:00]} e6 {[%emt 0:00:03]} 3. Nf3 {[%emt 0:00:00]} Nf6 {[%emt 0:00:09]} 4. g3 {[%emt 0:00:00]} Bb4+ {[%emt 0:00:13]} 5. Bd2 {[%emt 0:00:00]} Bd6 {[%emt 0:00:10]} 6. Bg2 {[%emt 0:00:00]} O-O {[%emt 0:00:49]} 7. O-O {[%emt 0:00:06]} Nbd7 {[%emt 0:00:58]} 8. c5 {[%emt 0:00:07]} Be7 {[%emt 0:00:11]} 9. Nc3 {[%emt 0:03:24]} Ne4 {[%emt 0:00:48]} 10. Nxe4 {[%emt 0:03:32]} dxe4 {[%emt 0:00:07]} 11. Ne5 {[%emt 0:00:50]} f5 {[%emt 0:00:56]} 12. Bf4 {[%emt 0:07:39]} g5 {[%emt 0:00:20]} 13. Nxd7 {[%emt 0:00:09]} Bxd7 {[%emt 0:00:08]} 14. Be5 {[%emt 0:00:05]} Bf6 {[%emt 0:00:21]} 15. Qb3 {[%emt 0:03:45]} Bxe5 {[%emt 0:08:34]} 16. dxe5 {[%emt 0:00:36]} Rb8 {[%emt 0:00:09]} 17. f3 {[%emt 0:38:39]} exf3 {[%emt 0:05:43]} 18. Rxf3 {[%emt 0:03:42]} Qe7 {[%emt 0:02:41]} 19. Qc4 {[%emt 0:01:02]} Bc6 {[%emt 0:12:03]} 20. Rd3 {[%emt 0:00:13]} 1/2-1/2

[Event "XX Sants Open 2018"]
[Site "Cotxeres de Sants"]
[Date "2018.08.20"]
[Round "4"]
[White "Vargas Drechsler, Carlos"]
[Black "Marani, Luca"]
[Result "1/2-1/2"]
[ECO "D35"]
[WhiteElo "1902"]
[BlackElo "1837"]
[Annotator "NA"]
[PlyCount "55"]
[EventDate "2018.08.17"]
[EventType "swiss"]
[EventCountry "ESP"]
[SourceTitle "playchess.com"]
[Source "ChessBase"]
[SourceQuality "1"]
[TimeControl "40/5400+30:1800+30"]

1. d4 d5 2. c4 e6 3. Nc3 Nf6 4. cxd5 exd5 5. Bg5 Be7 6. e3 c6 7. Bd3 Nbd7 8. Nf3 Nf8 9. h3 Ne6 10. Bh4 O-O 11. Qc2 g6 12. O-O-O Ng7 13. g4 Qa5 14. Ne5 Re8 15. Bxf6 Bxf6 16. f4 Ne6 17. f5 Nc5 18. fxg6 Nxd3+ 19. Qxd3 fxg6 20. Nxg6 b5 21. Ne5 Bxe5 22. dxe5 b4 23. Nb1 Qc5+ 24. Kd2 Rxe5 25. Rc1 Qd6 26. Qd4 Bb7 27. Qc5 Qxc5 28. Rxc5 1/2-1/2

[Event "XX Sants Open 2018"]
[Site "Cotxeres de Sants"]
[Date "2018.08.20"]
[Round "4"]
[White "Ruiz Gonzalez, Jorge"]
[Black "Pallares Gurrea, Aitor Alexander"]
[Result "1-0"]
[ECO "C45"]
[WhiteElo "1888"]
[BlackElo "1826"]
[Annotator "NA"]
[PlyCount "101"]
[EventDate "2018.08.17"]
[EventType "swiss"]
[EventCountry "ESP"]
[SourceTitle "playchess.com"]
[Source "ChessBase"]
[SourceQuality "1"]
[TimeControl "40/5400+30:1800+30"]

1. e4 e5 2. Nf3 Nc6 3. d4 exd4 4. Nxd4 Bc5 5. Nb3 Bb6 6. Qe2 Qe7 7. Nc3 Nf6 8. Bg5 Nd4 9. Nxd4 Bxd4 10. Nd5 Qd6 11. c3 Bb6 12. e5 Qxd5 13. exf6+ Qe6 14. fxg7 Rg8 15. Bf6 c6 16. c4 Ba5+ 17. Kd1 Qxe2+ 18. Bxe2 Bd8 19. Bc3 d6 20. Bh5 Be6 21. f4 Kd7 22. f5 Bxc4 23. f6 Be6 24. Be2 Bf5 25. Rf1 Be4 26. Rf4 d5 27. Bg4+ Kd6 28. g3 b5 29. Ke2 Re8 30. b4 Bg6+ 31. Kd2 Bb6 32. Bd4 Bxd4 33. Rxd4 a5 34. Bf3 axb4 35. Rxb4 Ra3 36. Rb3 Ra4 37. Re3 Rd4+ 38. Ke2 Bd3+ 39. Kf2 Be4 40. Rd1 Rxd1 41. Bxd1 c5 42. Ra3 Ke5 43. Ra6 c4 44. Bg4 c3 45. Re6+ fxe6 46. f7 Ra8 47. f8=Q Rxa2+ 48. Be2 c2 49. Qf4+ Kd4 50. Qe3+ Ke5 51. g8=Q 1-0

[Event "XX Sants Open 2018"]
[Site "Cotxeres de Sants"]
[Date "2018.08.20"]
[Round "4"]
[White "Vigier Lopey, Carlos"]
[Black "Palomino Gutierrez, Albert"]
[Result "0-1"]
[ECO "A08"]
[WhiteElo "1837"]
[BlackElo "1912"]
[Annotator "NA"]
[PlyCount "82"]
[EventDate "2018.08.17"]
[EventType "swiss"]
[EventCountry "ESP"]
[SourceTitle "playchess.com"]
[Source "ChessBase"]
[SourceQuality "1"]
[TimeControl "40/5400+30:1800+30"]

1. e4 {[%emt 0:00:00]} e6 {[%emt 0:00:00]} 2. d3 {[%emt 0:00:20]} d5 {[%emt 0:00:00]} 3. Nd2 {[%emt 0:00:12]} c5 {[%emt 0:00:13]} 4. Ngf3 Nc6 5. g3 {[%emt 0:01:25]} g6 {[%emt 0:00:28]} 6. Bg2 {[%emt 0:00:06]} Bg7 {[%emt 0:00:13]} 7. O-O {[%emt 0:00:26]} Nge7 {[%emt 0:00:19]} 8. Re1 {[%emt 0:03:48]} b6 {[%emt 0:00:56]} 9. exd5 {[%emt 0:01:59]} exd5 {[%emt 0:07:46]} 10. Nf1 {[%emt 0:06:26]} O-O {[%emt 0:01:01]} 11. Ne3 {[%emt 0:02:48]} a5 {[%emt 0:04:24]} 12. Rb1 {[%emt 0:02:51]} Ra7 {[%emt 0:09:41]} 13. b3 {[%emt 0:04:56]} a4 {[%emt 0:14:08]} 14. Bb2 {[%emt 0:05:49]} d4 {[%emt 0:04:03]} 15. Nc4 {[%emt 0:00:43]} b5 {[%emt 0:10:59]} 16. Ncd2 {[%emt 0:04:01]} a3 {[%emt 0:01:54]} 17. Ba1 {[%emt 0:02:43]} Nb4 {[%emt 0:01:54]} 18. Ne4 {[%emt 0:01:17]} Rc7 {[%emt 0:19:00]} 19. Qd2 {[%emt 0:07:53]} Ned5 {[%emt 0:04:05]} 20. Qc1 {[%emt 0:22:19]} h6 {[%emt 0:00:46]} 21. Re2 {[%emt 0:04:59]} f5 {[%emt 0:01:42]} 22. Ned2 {[%emt 0:01:29]} Ra7 {[%emt 0:03:24]} 23. Ne5 {[%emt 0:03:28]} Qd6 {[%emt 0:03:58]} 24. Ndf3 {[%emt 0:03:58]} Nxa2 {[%emt 0:00:41]} 25. Qe1 {[%emt 0:02:16]} Nac3 {[%emt 0:00:25]} 26. Nh4 {[%emt 0:01:28]} Nxe2+ {[%emt 0:00:40]} 27. Qxe2 {[%emt 0:00:20]} Bxe5 {[%emt 0:03:20]} 28. Nxg6 {[%emt 0:01:24]} Re8 {[%emt 0:02:11]} 29. f4 {[%emt 0:01:14]} Qxg6 {[%emt 0:01:58]} 30. Bxd5+ {[%emt 0:00:36]} Kh7 {[%emt 0:00:45]} 31. fxe5 {[%emt 0:00:51]} Rae7 {[%emt 0:00:31]} 32. Qf2 {[%emt 0:06:11]} Rxe5 {[%emt 0:00:22]} 33. Bf3 {[%emt 0:00:19]} b4 {[%emt 0:00:22]} 34. Rf1 {[%emt 0:00:39]} Qg5 {[%emt 0:00:26]} 35. Kh1 {[%emt 0:02:21]} Qe7 {[%emt 0:01:03]} 36. Bh5 {[%emt 0:00:58]} Bb7+ {[%emt 0:00:13]} 37. Kg1 {[%emt 0:00:21]} Rf8 {[%emt 0:00:32]} 38. g4 {[%emt 0:01:27]} Qg5 {[%emt 0:00:32]} 39. Re1 {[%emt 0:03:53]} fxg4 {[%emt 0:02:49]} 40. Rxe5 {[%emt 0:00:00]} Rxf2 {[%emt 0:00:00]} 41. Rxg5 {[%emt 0:01:59]} Rg2+ 0-1

[Event "XX Sants Open 2018"]
[Site "Cotxeres de Sants"]
[Date "2018.08.20"]
[Round "4"]
[White "Grasa Solanas, Oscar"]
[Black "Riu Borge, Albert"]
[Result "1-0"]
[ECO "A40"]
[WhiteElo "1646"]
[BlackElo "1530"]
[Annotator "NA"]
[PlyCount "63"]
[EventDate "2018.08.17"]
[EventType "swiss"]
[EventCountry "ESP"]
[SourceTitle "playchess.com"]
[Source "ChessBase"]
[SourceQuality "1"]
[TimeControl "40/5400+30:1800+30"]

1. c4 b6 2. Nc3 Bb7 3. d4 e6 4. d5 Bc5 5. e4 e5 6. Nf3 d6 7. Be2 h6 8. O-O Ne7 9. a3 a5 10. Rb1 Na6 11. Nh4 Bc8 12. Nf3 Bd7 13. Kh1 O-O 14. Be3 f5 15. Bd3 f4 16. Bxc5 Nxc5 17. Be2 Ng6 18. b4 axb4 19. axb4 Nb7 20. Ra1 Qe7 21. Qc2 Nh4 22. Ra2 Bg4 23. Nxh4 Qxh4 24. Bxg4 Qxg4 25. f3 Qd7 26. Rfa1 Rfb8 27. Rxa8 Rxa8 28. Rxa8+ Kh7 29. Ra7 Nd8 30. Nb5 Qe7 31. Rxc7 Qh4 32. Qe2 1-0

[Event "XX Sants Open 2018"]
[Site "Cotxeres de Sants"]
[Date "2018.08.20"]
[Round "4"]
[White "Martinez Torras, Pol"]
[Black "Febrero Perez, Lluis"]
[Result "1-0"]
[ECO "C50"]
[WhiteElo "1642"]
[BlackElo "1515"]
[Annotator "NA"]
[PlyCount "63"]
[EventDate "2018.08.17"]
[EventType "swiss"]
[EventCountry "ESP"]
[SourceTitle "playchess.com"]
[Source "ChessBase"]
[SourceQuality "1"]
[TimeControl "40/5400+30:1800+30"]

1. e4 {[%emt 0:00:00]} e5 {[%emt 0:00:00]} 2. Nf3 {[%emt 0:00:00]} Nc6 {[%emt 0:00:00]} 3. Bc4 {[%emt 0:00:04]} Be7 {[%emt 0:00:00]} 4. d4 {[%emt 0:00:44]} exd4 {[%emt 0:00:00]} 5. Nxd4 {[%emt 0:00:16]} Nf6 {[%emt 0:00:21]} 6. Nc3 {[%emt 0:01:17]} Ne5 {[%emt 0:00:51]} 7. Bb3 {[%emt 0:03:23]} d6 {[%emt 0:00:56]} 8. h3 {[%emt 0:02:03]} O-O {[%emt 0:00:13]} 9. O-O {[%emt 0:03:44]} c5 {[%emt 0:07:56]} 10. Nf3 {[%emt 0:02:32]} c4 {[%emt 0:02:30]} 11. Nxe5 {[%emt 0:02:37]} cxb3 {[%emt 0:00:08]} 12. Nf3 {[%emt 0:05:03]} bxa2 {[%emt 0:00:36]} 13. Rxa2 {[%emt 0:02:28]} Be6 {[%emt 0:00:17]} 14. Ra4 {[%emt 0:03:05]} a6 {[%emt 0:02:40]} 15. Re1 {[%emt 0:05:01]} Rc8 {[%emt 0:02:14]} 16. Bf4 {[%emt 0:08:59]} Qd7 {[%emt 0:09:27]} 17. Rd4 {[%emt 0:01:45]} Qc6 {[%emt 0:03:32]} 18. Bxd6 {[%emt 0:02:08]} Bxd6 {[%emt 0:04:31]} 19. Rxd6 {[%emt 0:00:07]} Qc5 {[%emt 0:03:19]} 20. Qd4 {[%emt 0:02:53]} Qh5 {[%emt 0:03:14]} 21. Qe5 {[%emt 0:03:19]} Rc5 {[%emt 0:08:29]} 22. Qxh5 {[%emt 0:01:58]} Rxh5 {[%emt 0:00:20]} 23. Red1 {[%emt 0:04:25]} g5 {[%emt 0:01:47]} 24. e5 {[%emt 0:05:04]} Ne8 {[%emt 0:01:32]} 25. Rd8 {[%emt 0:01:26]} g4 {[%emt 0:01:59]} 26. hxg4 {[%emt 0:01:38]} Bxg4 {[%emt 0:00:56]} 27. Re1 {[%emt 0:08:12]} Bxf3 {[%emt 0:00:15]} 28. gxf3 {[%emt 0:00:05]} Kh8 {[%emt 0:01:23]} 29. Re4 {[%emt 0:02:04]} Rf5 {[%emt 0:00:31]} 30. f4 {[%emt 0:00:31]} Rg8+ {[%emt 0:00:45]} 31. Kf1 {[%emt 0:00:27]} h5 {[%emt 0:00:34]} 32. Nd5 {[%emt 0:01:03]} 1-0

[Event "XX Sants Open 2018"]
[Site "Cotxeres de Sants"]
[Date "2018.08.20"]
[Round "4"]
[White "Vadillo, Torre Ismael"]
[Black "Lujan Moreno, Royer Manuel"]
[Result "1/2-1/2"]
[ECO "D15"]
[WhiteElo "1567"]
[BlackElo "1477"]
[Annotator "NA"]
[PlyCount "75"]
[EventDate "2018.08.17"]
[EventType "swiss"]
[EventCountry "ESP"]
[SourceTitle "playchess.com"]
[Source "ChessBase"]
[SourceQuality "1"]
[TimeControl "40/5400+30:1800+30"]

1. d4 d5 2. c4 Nf6 3. Nc3 c6 4. Nf3 a6 5. a4 g6 6. Bg5 Bg7 7. e3 Bg4 8. Be2 Nbd7 9. O-O h6 10. Bf4 Nh5 11. Bg3 Nxg3 12. hxg3 Nf6 13. Ne5 Be6 14. c5 O-O 15. Bd3 Qe8 16. f4 Nd7 17. f5 Nxe5 18. dxe5 gxf5 19. Bxf5 Qd7 20. Qg4 Bxf5 21. Rxf5 Qe6 22. Qh5 Qg6 23. Raf1 e6 24. Qxg6 fxg6 25. Rxf8+ Rxf8 26. Rxf8+ Kxf8 27. Kf2 Bxe5 28. Kf3 Bxc3 29. bxc3 e5 30. e4 Ke7 31. Ke3 Kd7 32. Kd3 Kc7 33. a5 Kd7 34. g4 Ke6 35. g5 hxg5 36. g4 Ke7 37. Ke3 Kd7 38. Kd3 1/2-1/2

[Event "XX Sants Open 2018"]
[Site "Cotxeres de Sants"]
[Date "2018.08.21"]
[Round "5"]
[White "Heimann, Andreas"]
[Black "Sochacki, Christophe"]
[Result "1-0"]
[ECO "B76"]
[WhiteElo "2590"]
[BlackElo "2455"]
[Annotator "ChessBase"]
[PlyCount "61"]
[EventDate "2018.08.17"]
[EventType "swiss"]
[EventCountry "ESP"]
[SourceTitle "playchess.com"]
[Source "ChessBase"]
[SourceQuality "1"]
[TimeControl "40/5400+30:1800+30"]

1. Nf3 {[%emt 0:00:00]} c5 {[%emt 0:01:50]} 2. e4 {[%emt 0:00:34]} d6 {[%emt 0:00:14]} 3. d4 {[%emt 0:00:06]} cxd4 {[%emt 0:00:04]} 4. Nxd4 {[%emt 0:00:04]} Nf6 {[%emt 0:00:05]} 5. Nc3 {[%emt 0:00:04]} g6 {[%emt 0:00:06]} 6. Be3 {[%emt 0:01:28]} Bg7 {[%emt 0:00:06]} 7. f3 {[%emt 0:00:02]} O-O {[%emt 0:00:20]} 8. Qd2 {[%emt 0:00:04]} Nc6 {[%emt 0:00:05]} 9. O-O-O {[%emt 0:00:07]} d5 {[%emt 0:00:16]} 10. exd5 {[%emt 0:00:06]} Nxd5 {[%emt 0:00:23]} 11. Nxc6 {[%emt 0:00:04]} bxc6 {[%emt 0:00:04]} 12. Bd4 {[%emt 0:00:05]} Bxd4 {[%emt 0:05:42]} 13. Qxd4 {[%emt 0:00:07]} Qb6 {[%emt 0:00:24]} 14. Na4 {[%emt 0:02:38]} Qc7 {[%emt 0:01:33]} 15. Bc4 {[%emt 0:06:01]} Rb8 {[%emt 0:11:22]} 16. Bb3 {[%emt 0:07:31]} Rb4 {[%emt 0:08:02]} 17. Qd2 {[%emt 0:01:02]} a5 18. a3 {[%emt 0:04:55]} Rf4 {[%emt 0:18:59]} 19. Rhe1 Bf5 {[%emt 0:27:35]} 20. g4 {[%emt 0:10:48]} Be6 21. Nc5 {[%emt 0:02:58]} a4 {[%emt 0:02:30]} 22. Ba2 {[%emt 0:02:50]} Bc8 23. c4 {[%emt 0:31:11]} Rxf3 {[%emt 0:05:53]} 24. cxd5 {[%emt 0:05:11]} cxd5 {[%emt 0:00:02]} 25. Qxd5 {[%emt 0:05:27]} Bxg4 {[%emt 0:00:11]} 26. Qe5 {[%emt 0:01:29]} Qc6 {[%emt 0:04:34]} 27. Qd4 {[%emt 0:00:05]} Bf5 {[%emt 0:06:06]} 28. Bd5 {[%emt 0:01:18]} Qb6 {[%emt 0:07:02]} 29. Bxf3 {[%emt 0:00:08]} Rc8 {[%emt 0:00:03]} 30. Re5 {[%emt 0:00:25]} Qb3 {[%emt 0:00:51]} 31. Rxf5 {[%emt 0:00:25]} 1-0

[Event "XX Sants Open 2018"]
[Site "Cotxeres de Sants"]
[Date "2018.08.21"]
[Round "5"]
[White "Vaibhav, Suri"]
[Black "Diaz Camallonga, Carles"]
[Result "1-0"]
[ECO "A14"]
[WhiteElo "2561"]
[BlackElo "2445"]
[Annotator "RC"]
[PlyCount "51"]
[EventDate "2018.08.17"]
[EventType "swiss"]
[EventCountry "ESP"]
[SourceTitle "playchess.com"]
[Source "ChessBase"]
[SourceQuality "1"]
[TimeControl "40/5400+30:1800+30"]

1. c4 {[%emt 0:00:00]} e6 {[%emt 0:00:00]} 2. g3 {[%emt 0:00:00]} Nf6 {[%emt 0:00:14]} 3. Bg2 {[%emt 0:00:01]} d5 {[%emt 0:00:08]} 4. Nf3 {[%emt 0:00:08]} Be7 {[%emt 0:00:17]} 5. O-O {[%emt 0:00:08]} O-O {[%emt 0:00:05]} 6. Ne5 {[%emt 0:00:16]} Qd6 {[%emt 0:05:19]} 7. d4 {[%emt 0:01:12]} dxc4 {[%emt 0:00:05]} 8. Na3 {[%emt 0:13:34]} Rd8 {[%emt 0:01:19]} 9. Qc2 {[%emt 0:02:12]} Qa6 {[%emt 0:03:14]} 10. e3 {[%emt 0:04:53]} c5 {[%emt 0:20:20]} 11. dxc5 {[%emt 0:00:56]} Bxc5 {[%emt 0:00:33]} 12. Naxc4 {[%emt 0:02:15]} Bd7 {[%emt 0:02:39]} 13. Nxf7 {[%emt 0:05:31]} Rc8 {[%emt 0:25:45]} 14. Nfe5 {[%emt 0:08:08]} Bb5 {[%emt 0:00:12]} 15. a4 {[%emt 0:09:23]} Bxc4 {[%emt 0:03:15]} 16. Nxc4 {[%emt 0:06:49]} Nbd7 {[%emt 0:07:29]} 17. b3 {[%emt 0:08:04]} Rab8 {[%emt 0:02:04]} 18. Bd2 {[%emt 0:01:52]} Nb6 {[%emt 0:03:36]} 19. Nxb6 {[%emt 0:03:35]} Qxb6 {[%emt 0:01:03]} 20. Rfc1 {[%emt 0:03:09]} a5 {[%emt 0:01:07]} 21. Qc4 {[%emt 0:02:27]} Kf7 {[%emt 0:01:32]} 22. Qf4 {[%emt 0:09:05]} Bd6 {[%emt 0:03:15]} 23. Bxa5 {[%emt 0:01:59]} Qa6 {[%emt 0:01:47]} 24. Qd4 {[%emt 0:04:13]} Bxg3 {[%emt 0:00:07]} 25. b4 Bd6 {[%emt 0:01:25]} 26. Bf1 {[%emt 0:03:45]} 1-0